{"text_format":"1","workbook":"xlsx","n_sheets":3,"sheets":["Claim Form - Antifreeze","RCF RI Premium Details","Active RCFs"],"not_rendered":{"charts":0,"images":2,"macros":0,"external_links":0,"defined_names":3,"comments":0,"pivot_tables":0},"unopened":[],"bounds":{"document_bytes":16777216,"sheet_cells":100000,"rows_first":2000,"rows_last":500,"rows_between":2000,"halvings":0,"cell_chars":16384,"cell_head_chars":4096},"cells_cut":0,"cells_raw":0,"read":"whole","date_system":"1900"}

{"sheet":"Claim Form - Antifreeze","index":0,"n_rows":65,"n_cols":13,"rows_kept":65,"cut":false,"hidden":false,"merged":[[32,4,32,7],[33,4,33,7],[35,4,35,9],[52,1,52,9],[53,1,53,9],[30,1,30,7],[3,2,3,6],[6,2,6,6],[5,2,5,6],[64,2,64,8],[60,2,60,5],[61,2,61,5],[60,6,60,9],[61,6,61,9],[59,2,59,5],[59,6,59,9],[58,1,58,9],[55,1,55,9],[56,1,56,9],[54,1,54,9],[51,1,51,9],[1,1,1,9],[2,1,2,9],[7,2,7,9],[9,1,9,9],[4,2,4,9],[3,8,3,9],[5,8,5,9],[6,8,6,9]]}
[]
[null,"Used Antifreeze\nProcessor Return Incentive Claim Form"]
[null,"All Blue Sections Must Be Completed"]
[null,"Processor Name",null,null,null,null,null,"Claim/Invoice #"]
[null,"Mailing Address"]
[null,"City and Province",null,null,null,null,null,"Postal Code"]
[null,"Phone ",null,null,null,null,null,"GST #"]
[null,"Registration #"]
[]
[null,"All Volumes must be reported in Litres (L)"]
[null,"Collector Name","Date Received \nat Processor","Reference #","Zone","Gross\nVolume","Glycol\n Test %","Adjusted\nVolume","Zone Rate","Amount Claimed by Processor"]
[null,null,null,null,null,null,null,null,{"$f":"IF($E12=\"\",\"-\",VLOOKUP($E12,$E$38:$I$47,5,FALSE))","v":"-"},{"$f":"IF(I12=\"-\",\"-\",H12*I12)","v":"-"},null,null,{"$f":"F12*(1-G12)","v":0}]
[null,null,null,null,null,null,null,null,"-",{"$f":"IF(I13=\"-\",\"-\",H13*I13)","v":"-"},null,null,{"$f":"F13*(1-G13)","v":0}]
[null,null,null,null,null,null,null,null,"-","-",null,null,{"$f":"F14*(1-G14)","v":0}]
[null,null,null,null,null,null,null,null,"-","-",null,null,{"$f":"F15*(1-G15)","v":0}]
[null,null,null,null,null,null,null,null,"-","-",null,null,0]
[null,null,null,null,null,null,null,null,"-","-",null,null,0]
[null,null,null,null,null,null,null,null,"-","-",null,null,0]
[null,null,null,null,null,null,null,null,"-","-",null,null,0]
[null,null,null,null,null,null,null,null,"-","-",null,null,0]
[null,null,null,null,null,null,null,null,"-","-",null,null,0]
[null,null,null,null,null,null,null,null,"-","-",null,null,0]
[null,null,null,null,null,null,null,null,"-","-",null,null,0]
[null,null,null,null,null,null,null,null,"-","-",null,null,0]
[null,null,null,null,null,null,null,null,"-","-",null,null,0]
[null,null,null,null,null,null,null,null,"-","-",null,null,0]
[null,null,null,null,null,null,null,null,"-","-",null,null,0]
[null,null,null,null,null,null,null,null,"-","-",null,null,0]
[null,null,null,null,null,null,null,null,null,0,null,null,0]
[null,null,null,null,"Total",{"$f":"IF(SUM(F12:F29)=0,\"-\",SUM(F12:F29))","v":"-"},{"$f":"IF(F30=\"-\",\"-\",1-(M30/F30))","v":"-"},{"$f":"IF(SUM(H12:H29)=0,\"-\",SUM(H12:H29))","v":"-"},null,{"$f":"SUM(J12:J29)","v":0},null,null,{"$f":"SUM(M12:M29)","v":0}]
[null,"RCF - RI Premium",null,null,null,null,null,null,null,{"$f":"'RCF RI Premium Details'!$J$34","v":0}]
[null,null,null,null,null,null,null,null,"Sub-Total",{"$f":"SUM(J30:J31)","v":0}]
[null,null,null,null,null,null,null,null,"5% GST",{"$f":"ROUND(J32*5%,2)","v":0}]
[null,null,null,null,null,null,null,null,"TOTAL",{"$f":"J32+J33","v":0}]
[]
[null,null,null,null,"Summary"]
[null,null,null,null,{"$f":"E11","v":"Zone"},"Gross\nVolume","Glycol\n Test %","Adjusted\nVolume","Zone Rate","Amount Claimed by Processor"]
[null,null,null,null,1,{"$f":"SUMIF($E$12:$E$29,$E38,F$12:F$29)","v":0},{"$f":"IF(F38=0,\"-\",1-(M38/F38))","v":"-"},{"$f":"SUMIF($E$12:$E$29,$E38,H$12:H$29)","v":0},0.35,{"$f":"SUMIF($E$12:$E$29,$E38,J$12:J$29)","v":0},null,null,{"$f":"SUMIF($E$12:$E$29,$E38,M$12:M$29)","v":0}]
[null,null,null,null,2,{"$f":"SUMIF($E$12:$E$29,$E39,F$12:F$29)","v":0},{"$f":"IF(F39=0,\"-\",1-(M39/F39))","v":"-"},0,0.37,0,null,null,0]
[null,null,null,null,3,0,{"$f":"IF(F40=0,\"-\",1-(M40/F40))","v":"-"},0,0.42,0,null,null,0]
[null,null,null,null,4,0,"-",0,0.4,0,null,null,0]
[null,null,null,null,5,0,"-",0,0.44,0,null,null,0]
[null,null,null,null,6,0,"-",0,0.42,0,null,null,0]
[null,null,null,null,7,0,"-",0,0.46,0,null,null,0]
[null,null,null,null,8,0,"-",0,0.52,0,null,null,0]
[null,null,null,null,9,0,"-",0,0.7,0,null,null,0]
[null,null,null,null,"RI Premium",{"$f":"SUMIF($E$12:$E$29,$E47,F$12:F$29)","v":0},{"$f":"IF(F47=0,\"-\",1-(M47/F47))","v":"-"},0,null,{"$f":"+J31","v":0},null,null,0]
[null,null,null,null,"Total",{"$f":"SUM(F38:F47)","v":0},{"$f":"IF(F48=0,\"-\",1-(M48/F48))","v":"-"},{"$f":"SUM(H38:H47)","v":0},"Subtotal",{"$f":"SUM(J38:J47)","v":0},null,null,{"$f":"SUM(M38:M47)","v":0}]
[null,null,null,null,null,null,null,null,"5% GST",{"$f":"ROUND(J48*5%,2)","v":0}]
[null,null,null,null,null,null,null,null,"TOTAL",{"$f":"J48+J49","v":0}]
[]
[null,"Ensure that all Collector Zone Summary Forms are submitted."]
[null,"I certify that all of the information contained within this claim form is correct."]
[null,"I understand the information in this report is subject to Desk Reviews, Field Reviews, and Compliance Reviews."]
[null,"The detailed records which substantiate the information herein are available upon request."]
[null,"I certify that, to the best of my knowledge, the materials included in this claim form were generated within British Columbia. "]
[null,"I certify that, to the best of my knowledge, only eligible oil materials (as determined by Interchange from time to time) have been included in this claim form. "]
[null,"I certify that, to the best of my knowledge, all processed materials have been sold for use in approved end uses (as determined by interchange from time to time)."]
[null,"I further acknowledge that I have read, and agree to be bound by, the terms and conditions in the Interchange Recycling Manual for Registered Collectors and Processors."]
[null,null,"Full Name and Title",null,null,null,"Approval and Date"]
[null,"Prepared By"]
[null,"Approved By"]
[]
[null,"*Interchange Recycling is a trade name and trade mark of the British Columbia Used Oil Management Association."]
[null,"INT1501A-P","Interchange GST NO. 89254 4701 RT0001",null,null,null,null,null,null,"2023-06-09"]

{"sheet":"RCF RI Premium Details","index":1,"n_rows":37,"n_cols":15,"rows_kept":37,"cut":false,"hidden":false,"merged":[[8,3,8,9],[9,1,9,9],[1,1,1,9],[2,1,2,9],[3,2,3,9],[4,2,4,9],[5,2,5,6],[5,7,5,9],[6,2,6,9],[7,2,7,9]]}
[]
[null,"Used Antifreeze\nRCF Collection Details",null,null,null,null,null,null,null,null,null,null,null,0.1]
[null,"All Blue Sections Must Be Completed"]
[null,"Processor Name"]
[null,"Mailing Address"]
[null,"City and Province",null,null,null,null,null,"Postal Code: "]
[null,"Phone "]
[null,"Registration #"]
[]
[null,"All Volumes must be reported in Litres (L)"]
[null,"Collector \nName","Collector Zone\nSummary #","RCF Collection \nDocket #","Date of Collection (MM-DD-YY)","RCF Location Name\n(Select from the list)","Gross\nVolume","% of Product \nConsumer Drop Off","Adjusted\nVolume","RI Premium"]
[null,null,null,null,null,null,null,{"$f":"IFERROR(VLOOKUP(F12,'Active RCFs'!$B$2:$I$301,8,FALSE),\"\")","v":""},{"$f":"IF(G12=0,\"-\",G12*H12)","v":"-"},{"$f":"IF(OR(ISBLANK(G12),ISBLANK(H12)), \"\", G12*H12*$N$2)","v":""}]
[null,null,null,null,null,null,null,{"$f":"IFERROR(VLOOKUP(F13,'Active RCFs'!$B$2:$I$301,8,FALSE),\"\")","v":""},{"$f":"IF(G13=0,\"-\",G13*H13)","v":"-"},{"$f":"IF(OR(ISBLANK(G13),ISBLANK(H13)), \"\", G13*H13*$N$2)","v":""},null,null,null,null,{"$f":"IF(OR(ISBLANK(A2),ISBLANK(B2)), \"\", G12*H12)","v":""}]
[null,null,null,null,null,null,null,{"$f":"IFERROR(VLOOKUP(F14,'Active RCFs'!$B$2:$I$301,8,FALSE),\"\")","v":""},"-",""]
[null,null,null,null,null,null,null,{"$f":"IFERROR(VLOOKUP(F15,'Active RCFs'!$B$2:$I$301,8,FALSE),\"\")","v":""},"-",""]
[null,null,null,null,null,null,null,{"$f":"IFERROR(VLOOKUP(F16,'Active RCFs'!$B$2:$I$301,8,FALSE),\"\")","v":""},"-",""]
[null,null,null,null,null,null,null,{"$f":"IFERROR(VLOOKUP(F17,'Active RCFs'!$B$2:$I$301,8,FALSE),\"\")","v":""},"-",""]
[null,null,null,null,null,null,null,{"$f":"IFERROR(VLOOKUP(F18,'Active RCFs'!$B$2:$I$301,8,FALSE),\"\")","v":""},"-",""]
[null,null,null,null,null,null,null,{"$f":"IFERROR(VLOOKUP(F19,'Active RCFs'!$B$2:$I$301,8,FALSE),\"\")","v":""},{"$f":"IF(G19=0,\"-\",G19*H19)","v":"-"},{"$f":"IF(OR(ISBLANK(G19),ISBLANK(H19)), \"\", G19*H19*$N$2)","v":""}]
[null,null,null,null,null,null,null,{"$f":"IFERROR(VLOOKUP(F20,'Active RCFs'!$B$2:$I$301,8,FALSE),\"\")","v":""},"-",""]
[null,null,null,null,null,null,null,{"$f":"IFERROR(VLOOKUP(F21,'Active RCFs'!$B$2:$I$301,8,FALSE),\"\")","v":""},"-",""]
[null,null,null,null,null,null,null,{"$f":"IFERROR(VLOOKUP(F22,'Active RCFs'!$B$2:$I$301,8,FALSE),\"\")","v":""},"-",""]
[null,null,null,null,null,null,null,{"$f":"IFERROR(VLOOKUP(F23,'Active RCFs'!$B$2:$I$301,8,FALSE),\"\")","v":""},"-",""]
[null,null,null,null,null,null,null,{"$f":"IFERROR(VLOOKUP(F24,'Active RCFs'!$B$2:$I$301,8,FALSE),\"\")","v":""},"-",""]
[null,null,null,null,null,null,null,{"$f":"IFERROR(VLOOKUP(F25,'Active RCFs'!$B$2:$I$301,8,FALSE),\"\")","v":""},{"$f":"IF(G25=0,\"-\",G25*H25)","v":"-"},""]
[null,null,null,null,null,null,null,{"$f":"IFERROR(VLOOKUP(F26,'Active RCFs'!$B$2:$I$301,8,FALSE),\"\")","v":""},{"$f":"IF(G26=0,\"-\",G26*H26)","v":"-"},""]
[null,null,null,null,null,null,null,{"$f":"IFERROR(VLOOKUP(F27,'Active RCFs'!$B$2:$I$301,8,FALSE),\"\")","v":""},"-",""]
[null,null,null,null,null,null,null,{"$f":"IFERROR(VLOOKUP(F28,'Active RCFs'!$B$2:$I$301,8,FALSE),\"\")","v":""},"-",""]
[null,null,null,null,null,null,null,{"$f":"IFERROR(VLOOKUP(F29,'Active RCFs'!$B$2:$I$301,8,FALSE),\"\")","v":""},"-",""]
[null,null,null,null,null,"Sub Total",{"$f":"SUM(G12:G29)","v":0},null,{"$f":"SUM(I12:I29)","v":0},{"$f":"SUM(J12:J29)","v":0}]
[]
[]
[]
[null,null,null,null,null,null,{"$f":"SUM(G30:G33)","v":0},null,{"$f":"SUM(I30:I33)","v":0},{"$f":"SUM(J30:J33)","v":0}]
[null,"Bottom 3 lines in Purple are for entering summary details from the Collectors' Collector Zone Summary"]
[null,"Orange cells have formulas "]
[null,"*Interchange Recycling is a trade name and trade mark of the British Columbia Used Oil Management Association."]

{"sheet":"Active RCFs","index":2,"n_rows":288,"n_cols":9,"rows_kept":288,"cut":false,"hidden":false,"merged":[]}
["List of Active and Approved RCFs -- as of April 7, 2025"]
["Reg. No.","Business Name","Legal Name","Address","City","Postal Code","General Telephone Number","Business Type","RI Premium Rate (%)"]
["BC60229","150 M & S Tire & Service Ltd.","0801620 BC Ltd.","10 Settlers Place","150 Mile House","V0K 2G0","+1 250 296 4116","Auto Repair",0.5]
["BC60176","7 Mile Landfill and Recycling Center (RDMW)","Regional District of Mount Waddington","16 km West of Port McNeill on Highway 19","Port McNeill","V0N 2R0","+1 250 949 1681","Recycling Center",1]
["BC60143","70 Mile House Eco-Depot (TNRD)","Thompson-Nicola Regional District","3061 N Bonaparte Road","70 Mile House","V2C 2A9","+1 250 377 8673","Recycling Center",1]
["BC50042","Ace Automotive","Ace Automotive","4685 Dundalk Road S","Port Alberni","V9Y 8P2","+1 250 723 3130","Auto Repair",0.5]
["BC60022","Alberni Valley Landfill (ACRD)","Alberni-Clayoquot Regional District","7080 McCoy Lake Road","Port Alberni","V9Y 2E3","+1 250 723 1059","Landfill",1]
["BC60290","Alert Bay Transfer Station","The Corporation of the Village of Alert Bay","154 Alder Rd","Alert Bay","V0N 1A0","+1 250 974 7091","Transfer Station",1]
["BC60023","Arjun Esso","Arjun Services Ltd.","3210 Smith Drive","Armstrong","V0E 1B1","+1 250 546 3772","Auto Repair",0.5]
["BC50294","A-Star Automotive Recycling Ltd.","A-Star Automotive Recycling Ltd.","2782 Cessna Road","Prince George","V2N 2H8","+1 250 963 3211","Auto Repair",0.5]
["BC60262","Barry Beecroft Fuel Distributors Ltd.","Barry Beecroft Fuel Distributors Ltd","448 Industrial Ave E","Penticton","V2A 3J1","+1 250 490 0567","Bulk Dealer",1]
["BC60280","Big O Tires Westbank","1218674 BC Ltd.","2110-1920 Old Okanagan Hwy","Westbank","V4T 3K6","+1 250 769 5909","Auto Repair",0.5]
["BC60027","Bings Creek Recycling Centre (CWVRD)","Cowichan Valley Regional Disrict","3900 Drinkwater Road","Duncan","V9L 6P2","+1 250 746 2540","Recycling Center",1]
["BC60144","Blue River Eco-Depot (TNRD)","Thompson-Nicola Regional District","5889 Blueberry Road","Blue River","V0E 1J0","+1 250 377 8673","Recycling Center",1]
["BC60288","Boston Flats Eco Depot","Thompson-Nicola Regional District","1180 Campbell Hill Drive East","Cache Creek","V0K 0A5","+1 250 377 8673","Multi-Material Depot",1]
["BC60258","Bowen Island Municipality Recycling Depot","Bowen Island Municipality","1063 Mt Gardner Rd","Bowen Island","V0N 1G2","+1 604 947 2255","Recycling Center",1]
["BC60293","Bowser Automotive Ltd","Bowser Automotive","6970 Island Hwy W","Bowser","V0R 1G0","+1 250 757 8341","Auto Repair",0.5]
["BC60028","Brentwood Auto & Metal Recyclers","Brentwood Auto & Metal Recyclers","7481 West Saanich Road","Saanichton","V8M 1R7","+1 250 665 7282","Auto Repair",0.5]
["BC60253","Bridgeview Marine Ltd. - Delta","Bridgeview Marine Ltd.","6435 River Rd ","Delta","V4K 4E2","+1 604 946 8566","Retailer",0.75]
["BC60292","Bridgeview Marine Ltd. - Prince Rupert","Bridgeview Marine Ltd.","161 Metlakatla Rd","Prince Rupert"," V8J 1G0","+1 250 624 5809","Retailer",0.75]
["BC60029","Burns Lake Automotive Supply Ltd. (Burns Lake)","Burns Lake Automotive Supply Ltd.","98 Francois Lake Drive","Burns Lake","V0J 1E0","+1 250 692 7565","Retailer",0.75]
["BC60156","C M Klassen Holdings Inc.","C M Klassen Holdings Inc.","30586 Matsqui Place","Abbotsford","V2T 6L4","+1 604 850 5650","Bulk Dealer",1]
["BC60179","Campbell Mountain Landfill (RDOS)","Regional District of Okanagan Similkameen","1765 Reservoir Road","Penticton","V2A 8T3","+1 250 492 2907","Landfill",1]
["BC60108","Campbell River Waste Management Centre (CXRD)","Comox Valley Regional District","6700 Argonaut Road","Campbell River","V9W 1R7","+1 250 336 8083","Multi-Material Depot",1]
["BC60212","Canadian Tire #360 (Prince George)","Selen Anita Securities Inc.","5008 Domano Blvd","Prince George","V2N 4V8","+1 250 964 8258","Retailer",0.75]
["BC60091","Canadian Tire #363  (Fort St. John)","Bannerman Enterprises Inc.","Old Fort Rd","Fort St. John","V1J 0S6","+1 250 787 1142","Retailer",0.75]
["BC60092","Canadian Tire #466  (Duncan)","Bob Bridger Ent. Inc.","2929 Green Road","Duncan","V9L 0C1","+1 250 748 0161","Retailer",0.75]
["BC60162","Canadian Tire #488  (Port Alberni)","J.D. Weaver Holdings Ltd.","101-3550 Johnston Road","Port Alberni","V9Y 7W8","+1 250 720 0085","Retailer",0.75]
["BC50121","Canadian Tire 631 (Smithers)","Sabraw Enterprises Ltd. o/a","3221 Highway 16","Smithers","V0J 2N0","+1 250 847 3117","Retailer",0.75]
["BC60247","Caron Horsefly Service Ltd (Race Trac Gas)","Caron Horsefly Service Ltd","5753 Horsefly Road","Horsefly","V0L 1L0","+1 250 620 3447","Auto Repair",0.5]
["BC60052","Castle Fuels (2008) Inc. (100 Mile House)","Castle Fuels (2008) Inc.","380 Exeter Road","100 Mile House","V0K 2E0","+1 250 395 3818","Bulk Dealer",1]
["BC60123","Castle Fuels (2008) Inc. (Cranbrook)","Castle Fuels (2008) Inc.","1814 Theatre Road","Cranbrook","V1C 7G1","+1 250 426 6669","Bulk Dealer",1]
["BC60030","Castle Fuels (2008) Inc. (Golden)","Castle Fuels (2008) Inc.","820 10th Avenue N","Golden","V0A 1H0","+1 250 344 6161","Bulk Dealer",1]
["BC60031","Castle Fuels (2008) Inc. (Invermere)","Castle Fuels (2008) Inc","410 Panorama Drive","Invermere","V0A 1K7","+1 250 342 9915","Bulk Dealer",1]
["BC60054","Castle Fuels (2008) Inc. (Kamloops)","Castle Fuels (2008) Inc.","1639 Trans-Canada Highway East","Kamloops","V2C 3Z5","+1 250 372 5035","Bulk Dealer",1]
["BC60314","CASTLE FUELS (2008) INC. (Kelowna)","CASTLE FUELS (2008) INC.","275 Campion St","Kelowna","V1X 7S8","1 250 372 1383","Bulk Dealer",1]
["BC60053","Castle Fuels (2008) Inc. (Salmon Arm)","Castle Fuels (2008) Inc.","4941 46 Avenue SE","Salmon Arm","V1E 2W1","+1 250 832 3108","Bulk Dealer",1]
["BC60284","Central Surrey Recycling and Waste Centre","Greater Vancouver Sewerage & Drainage District","6711 154 St","Surrey","V3S 2B9","+1 604 432 6200","Recycling Center",1]
["BC50166","Chapman Motors Ltd.","Chapman Motors Ltd.","1040 Chapman Road","Cobble Hill","V0R 1L7","+1 250 743 3744","Car Dealer",0.5]
["BC50775","Chap's Auto Body","Chap's Auto Body (Brent Graham Ltd.)","655 North Mackenzie Ave","Williams Lake","V2G 1N9","+1 250 398 8116","Auto Repair",0.5]
["BC60308","Chetwynd Landfill (PRRD)","Peace River Regional District","3978 Blair Road","Chetwynd","V0C 1J0","+1 250 219 5776","Landfill",1]
["BC60001","Chilliwack Bottle Depot","Chilliwack Bottle Depot Ltd","2-45934 Tretheway Avenue","Chilliwack","V2P 1K5","+1 604 792 9572","Multi-Material Depot",1]
["BC50048","Chilliwack Ford Sales (1981) Ltd.","Chilliwack Ford Sales (1981) Ltd.","45681 Yale Road","Chilliwack","V2P 2N1","+1 604 792 1361","Car Dealer",0.5]
["BC50562","Christina Lake Mechanical Ltd.","Christina Lake Mechanical Ltd.","1600 Highway 3","Christina Lake","V0H 1E0","+1 250 447 6288","Auto Repair",0.5]
["BC60225","City of Burnaby Eco-Center","City of Burnaby","4855 Still Creek Drive","Burnaby","V5C 5V1","+1 604 294 7972","Recycling Center",1]
["BC60145","Clearwater Eco-Depot (TNRD)","Thompson-Nicola Regional District","290 Road 2A FSR","Clearwater","V0E 1N0","+1 250 377 8673","Recycling Center",1]
["BC60146","Clinton Eco-Depot (TNRD)","Thompson-Nicola Regional District","5 Boyd Pit Road","Clinton","V0K 1K0","+1 250 377 8673","Recycling Center",1]
["BC50580","Columbia Diesel Ltd.","Columbia Diesel Ltd.","911 11th Avenue North","Golden","V0A 1H0","+1 250 344 6647","Bulk Dealer",1]
["BC60034","Columbia Fuels (Ucluelet) / Eagle Marine","Parkland Fuel Corporation","1231 Eber Road","Ucluelet","V0R 3A0","+1 250 726 4262","Bulk Dealer",1]
["BC60195","Comox Valley Harbour Authority","Comox Valley Harbour Authority","121 Port Augusta Street","Comox","V8N 6H8","+1 250 339 6041","Recycling Center",1]
["BC60109","Comox Valley Waste Management Centre - Cumberland (CXRD)","Comox Valley Regional District","3699 Bevan Road","Cumberland","V0R 1S0","+1 250 336 8083","Multi-Material Depot",1]
["BC60198","Cortes Island Waste Management Center (CXRD)","Comox Strathcona Waste Management","1300 Squirrel Cove Road","Cortes Island","V0P 1K0","+1 250 935 6329","Multi-Material Depot",1]
["BC60215","Courtenay Kia","Courtenay Kia","1025A Comox Road","Courtenay","V9N 3P7","+1 250 334 9993","Car Dealer",0.5]
["BC60181","Cranbrook Depot (RDEK)","Regional District of East Kootenay","2405 22nd Street North","Cranbrook","V1C 7B1","+1 250 489 2768","Multi-Material Depot",1]
["BC60276","Cummings Road Regional Transfer Station","Cummings Road Regional Transfer Station","8375 Alpine Dr","Prince George","V2N 5W7","+1 250 960 4400","Transfer Station",1]
["BC60242","D.L. Recycling","D.L. Bins Ltd.","6844 Oldfield Road","Saanichton","V8M 2A2","+1 250 544 3103","Recycling Center",1]
["BC60252","Dalex Auto Services","Dalex Auto Services","4440 50 Ave N","Fort Nelson","V0C 1R0","+1 250 774 6804","Auto Repair",0.5]
["BC50549","Dave Landon Motors Ltd.","Dave Landon Motors Ltd.","7150 Market Street","Port Hardy","V0N 2P0","+1 250 949 6393","Car Dealer",0.5]
["BC60127","Dawn's Service","Dawn's Service","6584 Savona Access Road","Savona","V0K 2J0","+1 250 373 2458","Auto Repair",0.5]
["BC50694","Day Auto Electric","Day Auto Electric","8  Manitou Road","Fernie","V0B 1M5","+1 250 423 6422","Auto Repair",0.5]
["BC50230","Dearborn Motors Ltd.","Dearborn Motors Ltd.","2555 Trans-Canada Highway East","Kamloops","V2C 4B1","+1 250 372 7101","Car Dealer",0.5]
["BC60191","Denham Ford BC Ltd. (2018)","Denham Ford BC Ltd.","2417 Cranbrook Street North","Cranbrook","V1C 3T3","+1 800 663 3839","Car Dealer",0.5]
["BC60185","Denman Island Recycling Depot (CXRD)","Comox Regional District","5901 Denman Road","Denman Island","V0R 1T0","+1 250 218 0782","Recycling Center",1]
["BC50184","Derick's Automotive Services","Derick's Automotive Services","638 John Street","Victoria","V8T 1T9","+1 250 382 1314","Auto Repair",0.5]
["BC60117","Desert Cardlock Fuel Services Ltd (Williams Lake)","Desert Cardlock Fuel Services Ltd","25 Hodgson Road","Williams Lake","V2G 3P5","+1 250 392 4224","Bulk Dealer",1]
["BC60203","Discovery Harbour Authority","Discovery Harbour Authority","2355 Spit Road","Campbell River","V9W 6E3","+1 250 287 7091","Recycling Center",1]
["BC60011","District of Summerland Landfill","District of Summerland Landfill","17202 Bathville Road","Summerland","V0H 1Z0","+1 250 404 0431","Landfill",1]
["BC60278","District of Tumbler Ridge","District of Tumbler Ridge","103 Ridge Rd","Tumbler Ridge","V0C 2W0","+1 250 242 4242","Transfer Station",1]
["BC50551","E.J. Klassen GM Motorcade","E.J. Klassen GM Motorcade","9045 Granville Street","Port Hardy","V0N 2P0","+1 250 949 6393","Car Dealer",0.5]
["BC60285","Ehattesaht First Nation","Comox Valley Regional District of behalf of/ Ehattesaht First Nation","601 Mainline Rd","Zeballos","V0P 2A0","+1 250 761 4155","Multi-Material Depot",1]
["BC60266","Elkford Transfer Station - Inkaneep Rd","Regional District of East Kootenay","6 Inkaneep Rd","Elkford","V0B 1H0","+1 250 489 2791","Transfer Station",1]
["BC50660","Entire Automotive Services Ltd.","Entire Automotive Services Ltd.","180 3rd Avenue East","Prince Rupert","V8J 1K5","+1 250 627 8473","Auto Repair",0.5]
["BC60235","False Creek Fuels","False Creek Fuels Ltd.","1655 Whyte Avenue","Vancouver","V6J 1A9","+1 604 638 0020","Bulk Dealer",1]
["BC60202","False Creek Harbour Authority","False Creek Harbour Authority","1505 West 1st Avenue","Vancouver","V6J 1E8","+1 604 733 3625","Recycling Center",1]
["BC60301","Fernie Waste Transfer Station (RDEK)","Regional District of East Kootenav","6000 Highway 3","Fernie","V0B 1M0","250 423 6477","Transfer Station",1]
["BC60241","Fisher Road Recycling","D.L. Bins Ltd.","1355 Fisher Road","Cobble Hill","V0R 1L0","+1 250 733 2108","Recycling Center",1]
["BC60204","Fisherman's Harbour","Port Alberni Port Authority","3140 Harbour Road","Port Alberni","V9Y 4B9","+1 250 723 2533","Recycling Center",1]
["BC60037","Fleetwest Enterprises Ltd.","Fleetwest Enterprises Ltd.","126 Station Road","Clearwater","V0E 1N0","+1 250 674 3116","Retailer",0.75]
["BC60015","Foothills Boulevard Regional Landfill (FFGRD)","Regional District of Fraser-Fort George","6595 Foothills Boulevard","Prince George","V2M 6V8",12509604445,"Landfill",1]
["BC60129","Fort St John Co-op Association (Fort St John - 100 Ave)","Fort St John Co-operative Association","7315 100 Avenue","Fort St. John","V1J 5T8","+1 250 785 4471","Bulk Dealer",1]
["BC60128","Fort St John Co-op Association (Fort St John - 91 Ave)","Fort St John Co-operative Association","10808 91 Avenue","Fort St. John","V1J 5R1","+1 250 785 9088","Bulk Dealer",1]
["BC60130","Fort St John Co-op Association (Prespatou)","Fort St John Co-operative Association","21793 Prespatou Road","Prespatou","V0C 2S0","+1 250 785 4471","Bulk Dealer",1]
["BC60209","Four Rivers Co-op (Houston)","Four Rivers Co-op (Houston)","2900 Hamblin Frontage Road","Houston","V0J 1Z0","+1 250 845 2303","Bulk Dealer",1]
["BC60193","Four Rivers Co-op (Prince George)","Four Rivers Co-op (Prince George)","998 Railway Road","Prince George","V2N 5R1","+1 250 564 3488","Bulk Dealer",1]
["BC60194","Four Rivers Co-op (Quesnel)","Four Rivers Co-op (Quesnel)","1280 Quesnel Hixon Road","Quesnel","V2J 5Z3","+1 250 992 7274","Bulk Dealer",1]
["BC60131","Four Rivers Co-op (Terrace Cardlock)","Four Rivers Co-op","101-4925 Keith Avenue","Terrace","V8G 1K7","+1 250 635 9595","Bulk Dealer",1]
["BC60275","Four Rivers Co-operative (Vanderhoof 2021)","Four Rivers Co-operative Petroleum","909 BC-16","Vanderhoof","V0J 3A1","+1 250 567 4488","Bulk Dealer",1]
["BC60304","Four Rivers Coop-Hartway Drive_PG","Four Rivers Coop","5520 Hartway Drive","Prince George","V2K5B6","250 564 3488","Retailer",1]
["BC50758","Frank's Auto Repair","Frank's Auto Repair","1045 Saskatoon Avenue","Prince Rupert","V8J 4P1","+1 250 624 4707","Auto Repair",0.5]
["BC50754","Fraser Lake Automotive & Recycling","Fraser Lake Automotive & Recycling","80 Cougar Street","Fraser Lake","V0J 1S0","+1 250 699 8330","Auto Repair",0.5]
["BC60024","Fraser Lake AutoSense","Burns Lake Automotive Supply Ltd.","470 Carrier Cres S","Fraser Lake","V0J 1S0","+1 250 699 8990","Retailer",0.75]
["BC50429","Fraser Valley Tireland","Fraser Valley Tireland","45825 Yale Road","Chilliwack","V2P 2N6","+1 604 795 5745","Retailer",0.75]
["BC60038","Furney Distributing Limited","Furney Distributing Limited","2333 Mine Road","Port McNeill","V0N 2R0","+1 250 956 3333","Bulk Dealer",1]
["BC50594","G & R Auto","G & R Auto","5129 9th Avenue","Okanagan Falls","V0H 1R0","+1 250 497 7113","Auto Repair",0.5]
["BC60187","Gabriola Island Recycling Organization (GIRO)","Gabriola Island Recycling Organization","700 Tin Can Alley","Gabriola Island","V0R 1X3","+1 250 247 9257","Recycling Center",1]
["BC60310","Galiano Island Recycling Resources Society","Galiano Recycles/GIRR","220 Sturdies Bay Road ","Galiano Island","V0N 1P0","+1 250 539 5769","Multi-Material Depot",1]
["BC50304","Gardner Chevrolet Oldsmobile Pontiac Buick","Gardner Chevrolet Oldsmobile Pontiac Buick","945 Water Avenue","Hope","V0X 1L0","+1 800 889 3075","Car Dealer",0.5]
["BC60132","Gartside Marine Engines Ltd","Gartside Marine Engines Ltd","13-1327 Beach Drive","Oak Bay","V8S 2N4","+1 250 598 3378","Retailer",0.75]
["BC50456","Gary Young Agencies","Gary Young Agencies","527C South Mackenzie Ave","Williams Lake","V2G 1E1","+1 250 563 1725","Bulk Dealer",1]
["BC60232","Geraco Industrial Supplies","Geraco Enterprises Ltd.","3377 Laurier Street","New Hazelton","V0J 2J0","+1 250 842 6717","Retailer",0.75]
["BC60231","GFL Environmental Depot (Abbotsford)","GFL Environmental Inc.","34613 Vye Road","Abbotsford","V2S 8J7","+1 604 854 0095","Multi-Material Depot",1]
["BC60245","GFL Environmental Depot (Chemainus)","GFL Environmental Inc.","9401 Trans-Canada Highway","Chemainus","V0R 1K4","+1 250 246 3216","Multi-Material Depot",1]
["BC60246","GFL Environmental Depot (Duncan)","GFL Environmental Inc.","3015 Boys Road","Duncan","V9L 3Y1","+1 250 746 4573","Multi-Material Depot",1]
["BC60227","GFL Environmental Depot (Victoria)","GFL Environmental Inc.","1045 Dunford Avenue","Langford","V9B 2S4","+1 250 474 5145","Multi-Material Depot",1]
["BC60039","GFL Environmental Liquids West","GFL Environmental Inc.","8831 100 Street","Fort St. John","V1J 3W7","+1 250 787 0803","Bulk Dealer",1]
["BC60040","Glacier Toyota","Bulkley Automotive Ltd.","3187 Tatlow Road","Smithers","V0J 2N0","+1 250 847 9302","Car Dealer",0.5]
["BC60133","Glenn's Import & Domestic Auto Service","Glenn's Small Car Parts & Repairs Ltd","160 Headquarters Road","Courtenay","V9N 3S2","+1 250 338 5841","Car Dealer",0.5]
["BC50816","Gold Automotive Ltd.","Gold Automotive Ltd.","300 Wallace Street","Nanaimo","V9R 5B5","+1 250 754 6421","Auto Repair",0.5]
["BC60140","Gold Bridge Transfer Station (SLRD)","Squamish-Lillooet Regional District","Saddle Road","Gold Bridge","V0K 1P0","+1 604 894 6371","Transfer Station",1]
["BC60186","Gold River Waste Management Center (CXRD)","Comox Regional District","100 Hilke Road","Gold River","V0P 1G0","+1 250 334 6090","Multi-Material Depot",1]
["BC60296","Gold Trail Recycling Ltd","Gold Trail Recycling Ltd","694 Sollows Crescent","100 Mile House","V0K 2E0","+1 250 395 1041","Recycling Center",1]
["BC60168","Golden Landfill (CSRD)","Columbia Shuswap Regional District","350 Golden Donald Upper Road","Golden","V0A 1H1","+1 250 833 5950","Landfill",1]
["BC60313","Grand Forks Bottle Depot / Vik-ram Environmental","1436368 B.C. Ltd.","8058 Donaldson Drive","Grand Forks","V0H 1H2","1 250 408 5585","Recycling Center",1]
["BC60281","Granton Motors Ltd","Granton Motors Ltd","3335 BC-3","Rock Creek","V0H 1Y0","+1 250 446 2311","Auto Repair",0.5]
["BC60294","Great Canadian Oil Change - Abbotsford","1291018 BC Ltd.","31952 South Fraser Way","Abbotsford","V2T 1V6","+1 604 864 9898","Lube Shop",0.2]
["BC60177","Great Canadian Oil Change (Chilliwack - Alexander Ave)","1155036 BC Ltd.","45970 Alexander Avenue","Chilliwack","V2P 1L5","+1 604 795 4747","Lube Shop",0.2]
["BC60178","Great Canadian Oil Change (Chilliwack - Vedder Rd)","1155036 BC Ltd.","7503 Vedder Road","Chilliwack","V2R 4E7","+1 604 824 5830","Lube Shop",0.2]
["BC60234","Great Canadian Oil Change (Courtenay)","VI Oil Services Inc.","450 29th Street","Courtenay","V9N 7S7","+1 250 871 8700","Lube Shop",0.2]
["BC60076","Great Canadian Oil Change (Cranbrook)","0964457 BC Ltd.","919 Cranbrook Street N","Cranbrook","V1C 3S4","+1 250 426 8314","Lube Shop",0.2]
["BC60112","Great Canadian Oil Change (Dawson Creek)","Bernhardt Auto Ltd","10420 8th Street","Dawson Creek","V1G 3P9","+1 250 782 1015","Lube Shop",0.2]
["BC60077","Great Canadian Oil Change (Duncan - June 2016)","0692083 BC Ltd.","2752 Beverly Street","Duncan","V9L 6Y9","+1 250 748 2752","Lube Shop",0.2]
["BC60254","Great Canadian Oil Change (Kelowna - Harvey Ave)","Kelowna GCOC Investments Ltd.","1785 Harvey Ave","Kelowna","V1Y 6G4","+1 250 868 1155","Lube Shop",0.2]
["BC60265","Great Canadian Oil Change (Kelowna-Richter St)","Slick Six Oil Ltd","1735 Richter St","Kelowna","V1Y 2M5","+1 250 864 4900","Lube Shop",0.2]
["BC60264","Great Canadian Oil Change (Lake Country)","Casaction Oil Ltd","9716 HWY 97","Lake Country","V4T 1T6","+1 778 800 2100","Lube Shop",0.2]
["BC60086","Great Canadian Oil Change (Langford - Langford Pkwy)","1003435 BC Ltd.","872 Langford Parkway","Langford","V9B 2P3","+1 250 590 5678","Lube Shop",0.2]
["BC60237","Great Canadian Oil Change (Langford - Millstream)","1003435 BC Ltd.","705 Treanor Ave","Victoria","V9B 3R3","+1 250 590 9079","Lube Shop",0.2]
["BC60081","Great Canadian Oil Change (Nanaimo - Island Hwy)","Chwelos Capital Inc.","130-3200 Island Highway N","Nanaimo","V9T 1W1","+1 250 729 3666","Lube Shop",0.2]
["BC60233","Great Canadian Oil Change (Nanaimo - Metral Dr)","Chwelos Capital Inc.","6470 Metral Drive","Nanaimo","V9T 2L8","+1 250 933 3555","Lube Shop",0.2]
["BC60226","Great Canadian Oil Change (Parksville)","Chwelos Capital Inc.","449 Island Highway E","Parksville","V9P 2G5","+1 250 248 0585","Lube Shop",0.2]
["BC60082","Great Canadian Oil Change (Penticton)","Bernhardt Auto Ltd.","1801 Main Street","Penticton","V2A 5H2","+1 250 490 9191","Lube Shop",0.2]
["BC50480","Great Canadian Oil Change (Prince George - 15 Avenue)","Great Canadian Oil Change (Prince George - 15 Avenue)","3169 15th Avenue","Prince George","V2M 1T6","+1 250 563 0762","Lube Shop",0.2]
["BC50752","Great Canadian Oil Change (Prince George - Austin Rd)","Great Canadian Oil Change (Prince George - Austin Rd)","3444 Austin Road E.","Prince George","V2K 0A3","+1 250 962 9023","Lube Shop",0.2]
["BC60256","Great Canadian Oil Change (Squamish)","Squamish GCOC Investments Ltd.","1000 Industrial Way","Squamish","V8B 0G9","+1 604 390 1144","Lube Shop",0.2]
["BC60084","Great Canadian Oil Change (Vernon - 27th Street)","WBC Holdings Ltd.","4411 27th Street","Vernon","V1T 4Y5","+1 250 545 7515","Lube Shop",0.2]
["BC60085","Great Canadian Oil Change (Vernon - Anderson Way)","WBC Holdings Ltd.","200-5601 Anderson Way","Vernon","V1T 9V1","+1 250 545 7516","Lube Shop",0.2]
["BC60216","Great Canadian Oil Change (Victoria - Douglas St - Apr 2019)","1195128 BC Ltd.","2353 Douglas Street","Victoria","V8T 4L6","+1 250 475 6868","Lube Shop",0.2]
["BC60087","Great Canadian Oil Change (West Kelowna)","Fifty Fifty - Four Enterprises","1000 1920 Old Okanagan Highway","West Kelowna","V4T 3K6","+1 778 797 5054","Lube Shop",0.2]
["BC60306","Great Canadian Oil Change_ Alaska Ave_Dawson Creek","Bernhardt Auto Ltd.","1030C Alaska Ave.","Dawson Creek","V1G1Y6"," 1 250 864 9507","Lube Shop",0.2]
["BC60305","Great Canadian Oil Change_Fort St. John","Bernhardt Auto Ltd.","10103 Alaska Rd. S.","Fort St. John","V1J4A1","250 864 9507","Lube Shop",0.2]
["BC60300","Great Canadian Oil Change_Kelowna_Sexsmith","Kelowna GCOC Investments Ltd.","3481 Sexsmith Rd.","Kelowna","V1X7T5","250 864 9507","Lube Shop",0.2]
["BC60042","Greendale Motors Ltd","Greendale Motors Ltd.","6412 Sumas Prairie Road","Chilliwack","V2R 4K2","+1 604 823 6713","Auto Repair",0.5]
["BC60114","Greenwood Auto Centre Ltd.","Greenwood Auto Centre Ltd.","925 Copper Avenue N","Greenwood","V0H 1J0","+1 250 605 9150","Auto Repair",0.5]
["BC60043","Greenwood Saw To Truck Repairs","Greenwood Saw To Truck Repairs","Bottom of 3rd Street","Anaconda","V0H 1J0","+1 250 445 9909","Auto Repair",0.5]
["BC60044","Gurton's Garage Ltd.","Gurton's Garage Ltd.","9139 East Saanich Road","North Saanich","V8L 1H6","+1 250 656 3939","Auto Repair",0.5]
["BC60282","Harbour Authority of Saltspring Island","Harbour Authority of Saltspring Island","127 Fulford-Ganges Rd","Ganges","V8K 2T9","+1 250 537 5711","Recycling Center",1]
["BC50446","Harris Mazda","Harris Mazda","2525 Bowen Road","Nanaimo","V9T 3L2","+1 250 758 9125","Car Dealer",0.5]
["BC60013","Hartland Landfill (CRD)","Capital Regional District","1 Hartland Avenue","Victoria","V9E 1L7","+1 250 360 3030","Landfill",1]
["BC60147","Heffley Creek Eco-Depot (TNRD)","Thompson-Nicola Regional District","7381 Sullivan Valley Road","Heffley Creek","V2H 0B6","+1 250 377 8673","Recycling Center",1]
["BC60165","Heiltsuk Environmental Services","Bella Bella Eco Depot","226 Wabalisla Street","Bella Bella","V0T 1Z0","+1 250 957 2674","Recycling Center",1]
["BC60045","Highway 4 Auto Salvage","0402530 BC Ltd.","2540 Alberni Highway","Coombs","V0R 1M0","+1 250 248 8916","Retailer",0.75]
["BC60221","Hudson's Hope Transfer Station (PRRD)","Peace River Regional District","20318 Canyon Road","Hudson’s Hope","V1C 1V0","+1 250 783 5608","Transfer Station",1]
["BC60135","Integra Tire Auto Center","Chase Tire Ltd","363 Shuswap Avenue","Chase","V0E 1M0","+1 250 679 3534","Auto Repair",0.5]
["BC60046","Interior Freight & Bottle Depot Ltd.","Interior Freight & Bottle Depot Ltd.","4205 24 Avenue","Vernon","V1T 1M1","+1 250 545 5706","Recycling Center",1]
["BC60047","Ironwood Auto Technicians","C.R. Ironwood Auto Technicians","995 Ironwood Street","Campbell River","V9W 3E5","+1 250 914 4151","Auto Repair",0.5]
["BC50465","Island Hose & Hydraulic (1994) Ltd.","Island Hose & Hydraulic (1994) Ltd.","5833 Duncan Street","Duncan","V9L 3W7","+1 250 746 8746","Retailer",0.75]
["BC60260","Island Solid Waste Management - Port Clements","North Coast Regional District (NCRD)","71454 HWY BC-16","Port Clements","V0T 1R0","+1 250 624 2002","Landfill",1]
["BC60259","Island Solid Waste Management - Skidegate","North Coast Regional District (NCRD)","Hwy 16, District lot #2797 S/W of Millar Creek","Skidegate","V0T 1R0","+1 250 557 9339","Transfer Station",1]
["BC50010","Island Tractor & Supply","Island Tractor & Supply","4650 Trans-Canada Highway","Duncan","V9L 6B5","+1 250 746 1755","Retailer",0.75]
["BC60279","Jaxsen - Pacific Marine and Motorsport","Jaxsen - Pacific Marine and Motorsport Ltd.","755 Fortune Dr","Kamloops","V2B 2L3","+1 236 421 2666","Auto Repair",0.5]
["BC60049","Jepson Petroleum Ltd. (Mackenzie)","Jepson Petroleum Ltd.","5325 Ritchie Road","Mackenzie","V0J 2C0","+1 250 997 3332","Bulk Dealer",1]
["BC60055","Jepson Petroleum Ltd. (Prince George)","Jepson Petroleum Ltd.","1064 Great Street","Prince George","V2N 2K8","+1 250 562 8166","Bulk Dealer",1]
["BC60051","Jepson Petroleum Ltd. (Quesnel)","Jepson Petroleum Ltd.","1261 Smith Avenue","Quesnel","V2J 2Y8","+1 250 992 6600","Bulk Dealer",1]
["BC60050","Jepson Petroleum Ltd. (Williams Lake)","Jepson Petroleum Ltd.","1041 Gill Road","Williams Lake","V2G 4P8","+1 250 392 4944","Bulk Dealer",1]
["BC60010","Jiffy Lube #1015 (Penticton)","Berco Lube (BC Division) Inc.","106-2695 Skaha Lake Road","Penticton","V2A 6E8","+1 250 492 6515","Lube Shop",0.2]
["BC60009","Jiffy Lube #1043 (West Kelowna)","Berco Lube (BC Division) Inc.","3010 Louie Drive","West Kelowna","V4T 3E1","+1 250 768 3010","Lube Shop",0.2]
["BC60095","Jiffy Lube #1075 (Victoria)","1121954 BC Ltd.","708 Bay Street","Victoria","V8T 1R2","+1 250 389 1326","Lube Shop",0.2]
["BC60257","Jiffy Lube #1078  (Salmon Arm)","KP LUBE (BC) INC","2991 10 Ave SW","Salmon Arm","V1E 0C3","+1 778 489 3778","Lube Shop",0.2]
["BC60189","Jiffy Lube #1080 (Kelowna - Harvey Ave)","Berco Lube (BC Division) Inc","3-1995 Harvey Avenue","Kelowna","V1Y 6G5","+1 250 980 3501","Lube Shop",0.2]
["BC60192","Jiffy Lube #1090 (Chilliwack)","1038199 BC Ltd.","2-7854 Vedder Road","Chilliwack","V2R 4G9","+1 604 705 3455","Lube Shop",0.2]
["BC50518","JNR Auto Services","JNR Auto Services","1021 South Frontage Road","McBride","V0J 2E0","+1 250 569 2666","Auto Repair",0.5]
["BC60277","JOMA Environmental Ltd","JOMA Environmental Ltd","2220 Keating Cross Rd","Saanichton","V8M 2A6","+1 250 884 4822","Transfer Station",1]
["BC60136","Kal Tire (Kitimat)","Anchor TireSales 2007 Ltd","236 Enterprise Ave","Kitimat","V8C 2C7","+1 250 632 2151","Auto Repair",0.5]
["BC50688","Kal Tire (Prince Rupert)","Seaport Tire Ltd.","943 Chamberlin Avenue","Prince Rupert","V8J 4J4","+1 250 624 8550","Auto Repair",0.5]
["BC60205","Kenmac Parts","Kenmac Parts (1967) Ltd.","1045 Gibsons Way","Gibsons","V0N 1V0","+1 604 886 2031","Retailer",0.75]
["BC60236","Keremeos Transfer Station (RDOS)","Regional District of Okanagan-Similkameen","860 El Rancho Drive","Keremeos","V0X 1N1","+1 250 499 5005","Transfer Station",1]
["BC60286","Kimberly Transfer Station (RDEK)","Regional District of East Kootenay","800 Jim Ogilvie Way","Kimberley","V1A 3J6","+1 250 489 6900","Multi-Material Depot",1]
["BC60124","Kitasoo Band Council","Kitasoo Band Council","150 Ferry Road","Klemtu","V0T 1L0","+1 250 839 1255","Recycling Center",1]
["BC60069","Kleindale Supply Ltd","Kleindale Supply Ltd","13540 Sunshine Coast Highway","Madeira Park","V0N 2H1","+1 604 883 2616","Bulk Dealer",1]
["BC60287","Kwadacha Nation Eco Depot","Kwadacha Nation","105 Tsigazi Drive","Fort Ware","V0J 3B0","+1 250 471 2302","Multi-Material Depot",1]
["BC50525","Lake City Ford Sales Ltd.","Lake City Ford Sales Ltd.","800 Broadway Avenue","Williams Lake","V2G 3P4","+1 250 392 4455","Car Dealer",0.5]
["BC60059","Laketime Services","Laketime Services","1648 Maida Frontage Road","Christina Lake","V0H 1E0","+1 250 447 9337","Auto Repair",0.5]
["BC60200","Lasqueti Island Recycling Depot (qRD)","Lasqueti Island Recycling Depot","Main Road","Lasqueti Island","V0R 2J0","+1 250 240 9886","Recycling Center",1]
["BC60295","Leq'a:mel First Nation Transfer Station","Leq'a:mel First Nation","41760 Nicomen Island Trunk Rd","Deroche","V0M 1G0","+1 604 768 9687","Transfer Station",1]
["BC60061","Likely Landfill (CBRD)","Cariboo Regional District","6507 Keithley Creek Road","Likely","V0L 1N0","+1 800 665 1636","Landfill",1]
["BC60141","Lillooet Landfill (SLRD)","Squamish-Lillooet Regional District","405 Landfill Road","Lillooet","V0K 1V0","+1 250 256 4099","Landfill",1]
["BC60244","Lil'wat Nation Public Works Yard","Lil'wat Nation","10027 Xit'Olacw Road","Mount Currie","V0N 2K0","+1 604 894 0131","Landfill",1]
["BC50738","Local Automotive Co. Ltd.","Local Automotive Co. Ltd.","1090 Millar Creek Road","Whistler","V0N 1B1","+1 604 932 5790","Auto Repair",0.5]
["BC60148","Logan Lake Eco-Depot (TNRD)","Thompson-Nicola Regional District","9261 Highway 97C","Logan Lake","V0K 1W0","+1 250 377 8673","Recycling Center",1]
["BC60149","Louis Creek Eco-Depot (TNRD)","Thompson-Nicola Regional District","4077 Agate Bay Road","Louis Creek","V0E 2E0","+1 250 377 8673","Recycling Center",1]
["BC60150","Lower Nicola Eco-Depot (TNRD)","Thompson-Nicola Regional District","2348 Woodward Road","Lower Nicola","V0K 1Y0","+1 250 377 8673","Recycling Center",1]
["BC60151","Lytton Eco-Depot (TNRD)","Thompson-Nicola Regional District","2040 Litton-Lillooet Road","Lytton","V0K 1Z0","+1 250 377 8673","Recycling Center",1]
["BC50689","MacCarthy Motors Ltd","MacCarthy Motors Ltd","1001 Chamberlin Avenue","Prince Rupert","V8J 4J5","+1 250 624 9171","Car Dealer",0.5]
["BC60016","Mackenzie Regional Landfill (FFGRD)","Regional District of Fraser-Fort George","Dump Road","Mackenzie","V0J 2C0","+1 250 960 4400","Landfill",1]
["BC60299","Malcolm Island Recycling Depot","Malcolm Island Recycling Depot","5-2nd St","Sointula","V0N 3E0","250 956 3301","Recycling Center",1]
["BC60017","McBride Regional Transfer Station (FFGRD)","Regional District of Fraser-Fort George","500 Northeast Frontage Road","McBride","V0J 2E0","+1 250 569 8877","Transfer Station",1]
["BC60062","Meade Creek Recycling Centre (CWVRD)","Cowichan Valley Regional District","8855 Youbou Road","Lake Cowichan","V0R 2G0","+1 250 746 2540","Recycling Center",1]
["BC50007","Mertin Pontiac Buick","Mertin Pontiac Buick","45930 Airport Road","Chilliwack","V2P 1A2","+1 888 637 8467","Car Dealer",0.5]
["BC60063","Method Marine Supply Co. Ltd","Method Marine Supply Co. Ltd.","380 Main Street","Tofino","V0R 2Z0","+1 250 725 3251","Retailer",0.75]
["BC50716","Midas Auto Service (Chilliwack)","Midas Auto Service (Chilliwack)","45908 Yale Road","Chilliwack","V2P 3M3","+1 604 426 0498","Auto Repair",0.5]
["BC60122","Mission Recycling Depot","Mission Recycling Depot","7229 Mershon Street","Mission","V2V 4M5","+1 604 850 3551","Recycling Center",1]
["BC60272","Mr. Lube #141 (Burnaby - Hastings St)","Eighty Five Lube Services Inc","6811 Hastings St","Burnaby","V5B 1S7","+1 604 294 1112","Lube Shop",0.2]
["BC60271","Mr. Lube #159 (Coquitlam - Barnet Hwy)","Seventy Five Lube Services Inc","2773 Barnet Hwy","Coquitlam","V3B 1C2","+1 604 941 0588","Lube Shop",0.2]
["BC60239","Mr. Lube #177 (Courtenay/Comox)","0982557 BC Ltd.","444 Lerwick Road","Courtenay","V9N 9G4","+1 250 871 8720","Lube Shop",0.2]
["BC60273","Mr. Lube #201 (Kingsway Ave)","Ninety Five Lube Services Inc","6629 Kingsway","Burnaby","V5E 1E2","+1 604 438 3544","Lube Shop",0.2]
["BC50474","Mr. Lube #236 (West Kelowna)","Everest Services Inc.","2423 Dobbin Road","West Kelowna","V4T 1K7","+1 250 768 2022","Lube Shop",0.2]
["BC50015","Mr. Lube #6 (Victoria - Douglas St)","Victoria Lubrications Ltd.","3388 Douglas Street","Victoria","V8Z 3L3","+1 250 475 2666","Lube Shop",0.2]
["BC60238","Mr. Lube #93 (Nanaimo)","Raedler & Associates Consulting Ltd. (628398 BC Ltd.)","10 Terminal Avenue","Nanaimo","V9R 5C3","+1 250 741 1700","Lube Shop",0.2]
["BC60106","Mr. Quick Lube & Oil (Prince George - George Street)","TRC Management Ltd","122 George Street","Prince George","V2L 1P9","+1 250 563 8160","Lube Shop",0.2]
["BC60107","Mr. Quick Lube & Oil (Prince George - Hart Hwy)","0462759 BC Ltd.","1746 Hart Highway","Prince George","V2K 2X6","+1 250 563 9160","Lube Shop",0.2]
["BC60213","MTB Auto Service","MTB Auto Service","11 Cliff Street","Nanaimo","V9R 5E6","+1 250 754 0711","Auto Repair",0.5]
["BC60207","NAPA Auto Parts (Pemberton)","RND Auto Industrial Limited","7456 Prospect Street","Pemberton","V0N 2L0","+1 604 894 6375","Retailer",0.75]
["BC60172","Nazko Landfill (CBRD)","Cariboo Regional District","9611 Baezaeko Road","Nazko","V2J 3H9","+1 250 392 3351","Landfill",1]
["BC60183","Nelson Leafs Recycling Center","Nelson Leafs Hockey Society","120 Silica Street","Nelson","V1L 6P9","+1 250 354 4922","Recycling Center",1]
["BC60307","Nisga'a Nation Waste Management Centre","Nisga'a Lisims Government","5.6 km NE of New Aiyansh, Hwy 113, Cranberry Connector, Nass Rd,Nisga'a Hwy  ","Gitwinksihlkw","VOJ3T0","1 250 633 2975","Multi-Material Depot",1]
["BC60065","Norris Oil Sales Ltd.","Norris Oil Sales Ltd.","Suite 1-1161 Sunshine Coast Highway","Gibsons","V0N 1V4","+1 604 885 2145","Bulk Dealer",1]
["BC60096","North Island Lube Ltd.","North Island Lube Ltd.","975 Ironwood St.","Campbell River","V9W 3E5","+1 250 286 1723","Lube Shop",0.2]
["BC60263","North Shore Recycling and Waste Centre","Greater Vancouver Sewerage & Drainage District","30 Riverside Dr W","North Vancouver","V7H 1T4","+1 604 432 6200","Recycling Center",1]
["BC60302","North-Wood Environmental Services Ltd.","North-Wood Environmental Services Ltd.","478 Okanagan Way","Kamloops","V2H 1G7","250 377 0115","Transfer Station",1]
["BC50208","O'Connor Chrysler","O'Connor Chrysler","45730 Hocking Avenue","Chilliwack","V2P 6J1","+1 604 792 2754","Car Dealer",0.5]
["BC60199","OK Tire (Prince George)","MAG Enterprises Ltd.","1655 20th Avenue","Prince George","V2L 4B7","+1 250 562 3131","Auto Repair",0.5]
["BC60014","OK Tire (Trail)","JJH Enterprises Ltd.","8137 Old Waneta Road","Trail","V1R 4X1","+1 250 364 2825","Auto Repair",0.5]
["BC50256","OK Tire Store (Chilliwack) Ltd.","OK Tire Store (Chilliwack) Ltd.","1-45676 Yale Road","Chilliwack","V2P 2N3","+1 604 795 3719","Auto Repair",0.5]
["BC60180","Oliver Landfill (RDOS)","Regional District of Okanagan Similkameen","498 Saddle Ridge Road","Oliver","V0H 1T1","+1 250 498 3316","Landfill",1]
["BC50753","P & H Supplies Ltd.","P & H Supplies Ltd.","279 East 1st St.","Vanderhoof","V0J 3A0","+1 250 567 9266","Retailer",0.75]
["BC50198","Pacific Chevrolet","Pacific Chevrolet","3800 Johnston Road","Port Alberni","V9Y 5N7","+1 866 661 2505","Car Dealer",0.5]
["BC60163","Parksville Petro-Canada (2016)","First Choice Auto Locators Ltd.","431 Island Highway E","Parksville","V9P 2H1","+1 250 248 4745","Retailer",0.75]
["BC60067","Peace Country Petroleum Sales Ltd. (Dawson Creek)","Peace Country Petroleum Sales Ltd.","8704 21st St.","Dawson Creek","V1G 0H7","+1 250 782 5801","Bulk Dealer",1]
["BC60068","Peerless Road Recycling Centre  (CWVRD)","Cowichan Valley Regional District","10830 Westdowne Road","Ladysmith","V9G 1X5","+1 250 746 2540","Recycling Center",1]
["BC60274","Pender Island Recycling Depot","Pender Island Recycling Society","4400 Otter Bay Rd","Pender Island","V0N 2M1","+1 250 629 6962","Recycling Center",1]
["BC60072","Petro-Canada (Prince Rupert - Marina)","Northwest Fuels Ltd","125 George Hills Way","Prince Rupert","V8J 3P6","+1 250 624 4106","Bulk Dealer",1]
["BC60071","Petro-Canada (Smithers)","Northwest Fuels Ltd.","4043 Railway Ave","Smithers","V0J 2N0","+1 250 847 2522","Bulk Dealer",1]
["BC50349","Petro-Canada (Stewart)","Petro Canada - Stewart  (Granmac Services Ltd.)","606 5th Avenue","Stewart","V0T 1W0","+1 250 636 2402","Retailer",0.75]
["BC60070","Petro-Canada (Terrace)","Northwest Fuels Ltd","5138 Keith Avenue","Terrace","V8G 1K9","+1 250 635 2066","Bulk Dealer",1]
["BC60214","Polar Park Auto (Napa 8740)","Polar Park Automotive & Industrial Sales","831 Highway 16 West","Burns Lake","V0J 1E0","+1 250 692 7501","Retailer",0.75]
["BC60159","Port Alberni Marine Fuels and Services","Port Alberni Marine Fuels and Services Ltd.","990-3300 Harbour Road","Port Alberni","V9Y 4B9","+1 250 730 3835","Retailer",0.75]
["BC60268","Port Hardy Harbour Authority","Port Hardy Harbour Authority","6600 Hardy Bay Rd","Port Hardy","V0N 2P0","+1 250 949 6332","Recycling Center",1]
["BC60297","Port Renfrew Garbage and Recycling Depot (CRD)","Port Renfrew Transfer Station","17055 Parkinson Rd","Port Renfrew","V0S 1K0","+1 250 647 0071","Transfer Station",1]
["BC50006","Prince George Truck & Equipment","Prince George Truck & Equipment","8982 Sintich Road","Prince George","V2N 5S6","+1 250 561 1234","Auto Repair",0.5]
["BC50488","Princeton Landfill","J-R Contracting & Recycling Ltd.","171 Princeton Summerland Road","Princeton","V0X 1W0","+1 250 295 0500","Landfill",1]
["BC60173","Puntzi Lake Landfill (CBRD)","Cariboo Regional District","11875 Chilcotin-Bella Coola Highway 20","Puntzi Lake","V2G 4X6","+1 250 392 3351","Landfill",1]
["BC60312","Quality Brake & Muffler 2005 Ltd._2024","Quality Brake & Muffler 2005 Ltd.","9820 Fifth Street","Sidney","V8L 2X3","+1 250 656 7228","Auto Repair",0.5]
["BC60019","Quinn Street Regional Recycle Depot (FFGRD)","Regional District of Fraser-Fort George","1687 Quinn Street","Prince George","V2N 4W6","+1 250 960 4400","Recycling Center",1]
["BC60158","Race Rocks Automotive","Race Rocks Automotive","1057B Marwood Avenue","Langford","V9C 2P7","+1 250 478 1920","Auto Repair",0.5]
["BC50690","Rainbow Chrysler Dodge Jeep Ltd.","Rainbow Chrysler Dodge Jeep Ltd.","1105 Chamberlin Avenue","Prince Rupert","V8J 4J5","+1 250 624 8200","Car Dealer",0.5]
["BC60012","Revelstoke Refuse Disposal Facility (CSRD)","Revelstoke Refuse Disposal Facility","330 Westside Road","Revelstoke","V0E 2S0","+1 250 833 5950","Landfill",1]
["BC50173","Rice Toyota Courtenay","Rice Toyota Courtenay","445 Crown Isle Blvd","Courtenay","V9N 9W1","+1 250 338 6761","Car Dealer",0.5]
["BC60230","Richmond Recycling Depot","City of Richmond","5599 Lynas Lane","Richmond","V7C 5B2","+1 604 276 4010","Recycling Center",1]
["BC60074","Ridge Meadows Recycling Society","Ridge Meadows Recycling Society","10092 236 Street","Maple Ridge","V2X 7G2","+1 604 463 5545","Recycling Center",1]
["BC60220","Riverside Repairs","0595620 BC Ltd.","2858 Garvie Road","Fort St. James","V0J 1P0","+1 250 996 0099","Auto Repair",0.5]
["BC50309","S M D Automotive Ltd.","S M D Automotive Ltd.","Unit A-1216 Alpha Lake Road","Whistler","V0N 1B1","+1 604 932 5347","Auto Repair",0.5]
["BC60126","Salmon Arm Landfill (CSRD)","Columbia Shuswap Regional District","4290 20th Avenue SE","Salmon Arm","V1E 1X9","+1 250 833 5950","Landfill",1]
["BC60152","Savona Eco-Depot (TNRD)","Thompson-Nicola Regional District","360 Savona Dump Road","Savona","V0K 2J0","+1 250 377 8673","Recycling Center",1]
["BC60184","Sayward Public Works (CXRD)","Comox Regional District","652 H'Kusam Way","Sayward","V0P 1R0","+1 250 282 5509","Recycling Center",1]
["BC60075","Seeco Automotive","0640653 BC Ltd.","511 McPhee Avenue","Courtenay","V9N 2Z7","+1 250 334 3012","Auto Repair",0.5]
["BC60167","Semiahmoo Bottle Depot","Sung Min Holdings Corporation","29-15515 24 Avenue","Surrey","V4A 2J4","+1 604 531 7669","Recycling Center",1]
["BC50455","Sherwood's Auto Parts","Sherwood's Auto Parts","2596 Timberlane Road","Port Alberni","V9Y 8P2","+1 250 723 7222","Retailer",0.75]
["BC60311","Shortstop Auto Service Inc","Shortstop Auto Service Inc","1617 56th Street","Delta","V4L 2B2","1 604 943 4920","Auto Repair",0.5]
["BC60102","Smith Fuel Services Ltd.","Smith Fuel Services Ltd.","9516 78 Street","Fort St. John","V1J 4J9","+1 250 785 3466","Bulk Dealer",1]
["BC60153","South Thompson Eco-Depot (TNRD)","Thompson-Nicola Regional District","1595 Martin Prairie Road","Pritchard","V0E 2P0","+1 250 377 8673","Recycling Center",1]
["BC60154","Spences Bridge Eco-Depot (TNRD)","Thompson-Nicola Regional District","9549 Highway 8","Spences Bridge","V0K 2L8","+1 250 377 8673","Recycling Center",1]
["BC50687","Sullivan Motor Products","Sullivan Motor Products","2760 Yellowhead Highway","Houston","V0J 1Z0","+1 250 845 2244","Retailer",0.75]
["BC60142","Sunshine Disposal and Recycling","Independent Marketing Canada Ltd","4484 Franklin Avenue","Powell River","V8A 3E3","+1 604 485 0167","Recycling Center",1]
["BC50673","Surfside Automotive","Surfside Automotive","Suite 6-1009 Allsbrook Road","Parksville","V9P 2A9","+1 250 248 1133","Auto Repair",0.5]
["BC60267","Tahltan Band","Tahltan Indian Band","Telegraph Creek Rd","Telegraph Creek","V0J 2W0","+1 250 235 3151","Transfer Station",1]
["BC60161","Tahsis Waste Management Center (CXRD)","Comox Valley Regional District","1015 Maquinna Drive","Tahsis","V0P 1X0","+1 250 934 6337","Recycling Center",1]
["BC60283","Take 5 Oil Change","PRJD Enterprises Ltd","101-1675 Commerce Ave","Kelowna","V1X 8A9","+1 778 484 5660","Lube Shop",0.2]
["BC60316","Take 5 Oil Change_Coquitlam","Rathor Holdings Ltd","858 westwood st","Coquitlam","V3C3L2","604-944-1121","Lube Shop",0.2]
["BC60317","Take 5 Oil Change_Mission","SRJ Enterprises Ltd","105-32471 Lougheed Hwy","Mission","V2V 0C8","604-287-5501","Lube Shop",0.2]
["BC60240","Takla Nation Eco-Depot","Takla Nation","Lakeshore Drive","Takla Landing","V0J 2T0","+1 250 996 7877","Recycling Center",1]
["BC60174","Tatla Lake Landfill (CBRD)","Cariboo Regional District","16131 Chilcotin-Bella Coola Highway 20","Tatla Lake","V2G 4X6","+1 250 392 3351","Landfill",1]
["BC60157","Thorsen Creek Recycling Center (CCRD)","Central Coast Regional District","751 Thorsen Road","Bella Coola","V0T 1C0","+1 250 799 5291","Recycling Center",1]
["BC50639","TLC Automotive Services Ltd.","TLC Automotive Services Ltd.","1963 Collison Avenue","Masset","V0T 1M0","+1 250 626 3756","Auto Repair",0.5]
["BC60249","Tofino Harbour Authority","Tofino Harbour Authority","40 4th Street","Tofino","V0R 2Z0","+1 250 725 4441","Auto Repair",0.5]
["BC60196","Town of Osoyoos Sanitary Landfill","Town of Osoyoos","17250 146 Avenue","Osoyoos","V0H 1V0","+1 250 495 6515","Landfill",1]
["BC60110","Triton Automotive and Industrial Ltd (NAPA)","Triton Automotive and Industrial Ltd","1003 Industrial Way","Squamish","V8B 0H1","+1 800 790 6434","Retailer",0.75]
["BC60219","Tsehum Harbour Authority - Tenants Only","Tsehum Harbour Authority","10441 Resthaven Drive","Sidney","V8L 3H6","+1 250 655 4496","Recycling Center",1]
["BC60270","United Boulevard Recycling and Waste Centre","Greater Vancouver Sewerage & Drainage District","995 United Blvd","Coquitlam","V3K 4S8","+1 604 432 6200","Recycling Center",1]
["BC60018","Valemount Regional Transfer Station (FFGRD)","Regional District of Fraser-Fort George","980 Highway 5 North","Valemount","V0E 2Z0","+1 250 960 4400","Transfer Station",1]
["BC60020","Vanway Regional Transfer Station (FFGRD)","Regional District of Fraser-Fort George","6556 Broddy Road","Prince George","V2N 5N7","+1 250 960 4400","Transfer Station",1]
["BC60103","V-Echo Restorations","Vjeko Zima","3-2305 Mine Road","Port McNeill","V0N 2R0","+1 250 956 4809","Auto Repair",0.5]
["BC60182","Village of Port Alice Recycling Facility","Village of Port Alice","721 Marine Drive","Port Alice","V0N 2N0","+1 250 284 6612","Recycling Center",1]
["BC60309","Waterways Environmental","Canadian Emergency Medical Services Inc.","9995 Finn Bay Rd","Lund","V0N 2G0","+1 604 720 5559","Recycling Center",1]
["BC60175","West Chilcotin Landfill (CBRD)","Cariboo Regional District","21731 Chilcotin-Bella Coola Highway 20","Nimpo Lake","V2G 4X6","+1 250 392 3351","Landfill",1]
["BC60155","Westwold Eco-Depot (TNRD)","Thompson-Nicola Regional District","6365 Westwold Station Road","Westwold","V0E 3B0","+1 250 377 8673","Recycling Center",1]
["BC60211","Wide Sky Disposal","Wide Sky Disposal 1989 Ltd","4501 55 Street","Fort Nelson","V0C 1R0","+1 250 774 6528","Multi-Material Depot",1]
["BC60164","Wolverine Auto Parts & Service","Double Mac Motors Ltd.","126 Apex Drive","Logan Lake","V0K 1W0","+1 250 523 6593","Auto Repair",0.5]
["BC60298","Woss Recycling Depot","Woss Recycling Depot - RDMW","8 Klaklakama Ave, PO BOX 5112","Woss","V0N 3P0","+1 250 956 3301","Recycling Center",1]
["BC50793","Woz Mechanical Ltd.","Woz Mechanical Ltd.","1994 Highway 3","Fernie","V0B 1M5","+1 250 423 4770","Auto Repair",0.5]